{"text_format":"3","workbook":"xlsx","n_sheets":2,"sheets":["Töötaja ajakava.","Häälestamine"],"not_rendered":{"defined_names":21},"read":"whole","date_system":"1900"}

{"sheet":"Töötaja ajakava.","index":0,"n_rows":296,"n_cols":21,"rows_kept":296,"merged":[[6,1,6,9],[66,1,66,9],[126,1,126,9],[186,1,186,9],[246,1,246,9]]}
["Töötajate töögraafik"]
[]
[null,"KOKKU:",null,{"$f":"SUM(4:4)","v":{"v":56,"d":"56.00"}}]
[null,"TUNNID:",null,{"$f":"TöötajaPäevTunnidKokku","v":8},{"$f":"TöötajaPäevTunnidKokku","v":8},8,8,8,8,8,{"v":0,"d":"0.00"},{"v":0,"d":"0.00"},{"v":0,"d":"0.00"},{"v":0,"d":"0.00"},{"v":0,"d":"0.00"},{"v":0,"d":"0.00"},{"v":0,"d":"0.00"},{"v":0,"d":"0.00"},{"v":0,"d":"0.00"},{"v":0,"d":"0.00"},{"v":0,"d":"0.00"}]
[null,"TÖÖTAJA:",null,"Kapp, T","Metsis, K","Savi, S","Metsis, K","Kask, M","Lest, L","Paas, O"]
[]
[null,"2012-07-16T09:00:00"]
[null,{"$f":"B7","v":41106.375},{"$nulls":5},"Puhkus"]
[null,{"$f":"PerioodidKuva","v":":15"},null,"Administraator",{"$nulls":3},"Puhkus"]
[null,":30",null,"Administraator",{"$nulls":3},"Puhkus"]
[null,":45",null,"Administraator","Juhataja",null,"Klienditeenindaja","Puhkus"]
[null,"10:00",null,"Administraator","Juhataja",null,"Klienditeenindaja","Puhkus"]
[null,":15",null,"Administraator","Juhataja",null,"Klienditeenindaja","Puhkus"]
[null,":30",null,"Administraator","Juhataja",null,"Klienditeenindaja","Puhkus","Raamatupidaja"]
[null,":45",null,"Administraator","Juhataja",null,"Klienditeenindaja","Puhkus","Raamatupidaja","Koristaja"]
[null,"11:00",null,"Administraator","Juhataja",null,"Klienditeenindaja","Puhkus","Raamatupidaja","Koristaja"]
[null,":15",null,"Administraator","Juhataja","Juhendaja","Klienditeenindaja","Puhkus","Raamatupidaja","Koristaja"]
[null,":30",null,"Administraator","Paus","Juhendaja","Klienditeenindaja","Puhkus","Raamatupidaja","Koristaja"]
[null,":45",null,"Lõuna","Juhataja","Juhendaja","Klienditeenindaja","Puhkus","Raamatupidaja","Koristaja"]
[null,"12:00",null,"Lõuna","Juhataja","Juhendaja","Klienditeenindaja","Puhkus","Raamatupidaja","Koristaja"]
[null,":15",null,"Administraator","Juhataja","Juhendaja","Klienditeenindaja","Puhkus","Paus","Koristaja"]
[null,":30",null,"Administraator","Juhataja","Paus","Klienditeenindaja","Puhkus","Telefonid","Paus"]
[null,":45",null,"Administraator","Juhataja","Juhendaja","Klienditeenindaja","Puhkus","Telefonid","Koristaja"]
[null,"13:00",null,"Administraator","Juhataja","Juhendaja","Klienditeenindaja","Puhkus","Telefonid","Koristaja"]
[null,":15",null,"Administraator","Juhataja","Juhendaja","Lõuna","Puhkus","Telefonid","Koristaja"]
[null,":30",null,null,"Juhataja","Juhendaja","Lõuna","Puhkus","Telefonid","Koristaja"]
[null,":45",null,null,"Juhataja","Juhendaja","Lõuna","Puhkus","Lõuna","Koristaja"]
[null,"14:00",null,"Kassapidaja","Lõuna","Juhendaja","Lõuna","Puhkus","Lõuna","Koristaja"]
[null,":15",null,"Kassapidaja","Lõuna","Juhendaja","Klienditeenindaja","Puhkus","Telefonid","Koristaja"]
[null,":30",null,"Kassapidaja","Lõuna","Lõuna","Klienditeenindaja","Puhkus","Telefonid","Lõuna"]
[null,":45",null,"Kassapidaja","Lõuna","Lõuna","Klienditeenindaja","Puhkus","Telefonid","Lõuna"]
[null,"15:00",null,"Kassapidaja","Turvatöötaja","Lõuna","Klienditeenindaja","Puhkus","Telefonid","Lõuna"]
[null,":15",null,"Kassapidaja","Turvatöötaja","Lõuna","Klienditeenindaja","Puhkus","Telefonid","Lõuna"]
[null,":30",null,"Kassapidaja","Turvatöötaja","Juhendaja","Klienditeenindaja","Puhkus","Telefonid","Sulgemine"]
[null,":45",null,"Kassapidaja","Turvatöötaja","Juhendaja","Klienditeenindaja","Puhkus","Telefonid","Sulgemine"]
[null,"16:00",null,"Kassapidaja","Turvatöötaja","Juhendaja","Klienditeenindaja","Puhkus","Paus","Sulgemine"]
[null,":15",null,"Paus","Turvatöötaja","Juhendaja","Paus","Puhkus","Telefonid","Sulgemine"]
[null,":30",null,"Kassapidaja","Turvatöötaja","Juhendaja","Klienditeenindaja","Puhkus","Telefonid","Sulgemine"]
[null,":45",null,"Kassapidaja","Turvatöötaja","Juhendaja","Klienditeenindaja","Puhkus","Telefonid","Sulgemine"]
[null,"17:00",null,"Kassapidaja","Turvatöötaja","Juhendaja","Klienditeenindaja",null,"Telefonid","Sulgemine"]
[null,":15",null,"Kassapidaja","Turvatöötaja","Juhendaja","Klienditeenindaja",null,"Telefonid","Sulgemine"]
[null,":30",null,"Kassapidaja","Turvatöötaja","Juhendaja","Klienditeenindaja",null,"Telefonid","Sulgemine"]
[null,":45",null,"Kassapidaja","Turvatöötaja","Juhendaja","Klienditeenindaja",null,"Telefonid","Sulgemine"]
[null,"18:00",null,"Kassapidaja","Turvatöötaja","Juhendaja","Klienditeenindaja",null,"Telefonid","Sulgemine"]
[null,":15",null,"Kassapidaja","Turvatöötaja","Juhendaja","Klienditeenindaja",null,"Telefonid","Sulgemine"]
[null,":30",null,null,"Turvatöötaja","Juhendaja","Klienditeenindaja",null,"Telefonid","Sulgemine"]
[null,":45",null,null,"Turvatöötaja","Paus","Klienditeenindaja",null,"Telefonid","Paus"]
[null,"19:00",{"$nulls":3},"Juhendaja",null,null,"Telefonid","Sulgemine"]
[null,":15",{"$nulls":3},"Juhendaja",null,null,"Telefonid","Sulgemine"]
[null,":30",{"$nulls":3},"Juhendaja",{"$nulls":3},"Sulgemine"]
[null,":45",{"$nulls":3},"Juhendaja",{"$nulls":3},"Sulgemine"]
[null,"20:00",{"$nulls":3},"Juhendaja",{"$nulls":3},"Sulgemine"]
[null,":15",{"$nulls":3},"Juhendaja"]
[null,":30",{"$nulls":3},"Juhendaja"]
[null,":45"]
[null,"21:00"]
[]
[]
[]
[]
["Töötaja ajakava"]
[]
[null,"KOKKU:",null,{"$f":"SUM(64:64)","v":{"v":56,"d":"56.00"}}]
[null,"TUNNID:",null,{"$f":"TöötajaPäevTunnidKokku","v":8},8,8,8,8,8,8,{"v":0,"d":"0.00"},{"v":0,"d":"0.00"},{"v":0,"d":"0.00"},{"v":0,"d":"0.00"},{"v":0,"d":"0.00"},{"v":0,"d":"0.00"},{"v":0,"d":"0.00"},{"v":0,"d":"0.00"},{"v":0,"d":"0.00"},{"v":0,"d":"0.00"},{"v":0,"d":"0.00"}]
[null,"TÖÖTAJA:",null,"Kapp, T","Metsis, K","Savi, S","Mustikas, M","Kask, M","Lest, L","Paas, O"]
[]
[null,{"$f":"B7+1","v":"2012-07-17T09:00:00"}]
[null,{"$f":"B67","v":41107.375},{"$nulls":5},"Puhkus"]
[null,{"$f":"PerioodidKuva","v":":15"},null,"Administraator",{"$nulls":3},"Puhkus"]
[null,":30",null,"Administraator",{"$nulls":3},"Puhkus"]
[null,":45",null,"Administraator","Juhataja",null,"Klienditeenindaja","Puhkus"]
[null,"1:00",null,"Administraator","Juhataja",null,"Klienditeenindaja","Puhkus"]
[null,":15",null,"Administraator","Juhataja",null,"Klienditeenindaja","Puhkus"]
[null,":30",null,"Administraator","Juhataja",null,"Klienditeenindaja","Puhkus","Raamatupidaja"]
[null,":45",null,"Administraator","Juhataja",null,"Klienditeenindaja","Puhkus","Raamatupidaja","Koristaja"]
[null,"2:00",null,"Administraator","Juhataja",null,"Klienditeenindaja","Puhkus","Raamatupidaja","Koristaja"]
[null,":15",null,"Administraator","Juhataja","Juhendaja","Klienditeenindaja","Puhkus","Raamatupidaja","Koristaja"]
[null,":30",null,"Administraator","Paus","Juhendaja","Klienditeenindaja","Puhkus","Raamatupidaja","Koristaja"]
[null,":45",null,"Lõuna","Juhataja","Juhendaja","Klienditeenindaja","Puhkus","Raamatupidaja","Koristaja"]
[null,"3:00",null,"Lõuna","Juhataja","Juhendaja","Klienditeenindaja","Puhkus","Raamatupidaja","Koristaja"]
[null,":15",null,"Administraator","Juhataja","Juhendaja","Klienditeenindaja","Puhkus","Paus","Koristaja"]
[null,":30",null,"Administraator","Juhataja","Paus","Klienditeenindaja","Puhkus","Telefonid","Paus"]
[null,":45",null,"Administraator","Juhataja","Juhendaja","Klienditeenindaja","Puhkus","Telefonid","Koristaja"]
[null,"4:00",null,"Administraator","Juhataja","Juhendaja","Klienditeenindaja","Puhkus","Telefonid","Koristaja"]
[null,":15",null,"Administraator","Juhataja","Juhendaja","Lõuna","Puhkus","Telefonid","Koristaja"]
[null,":30",null,null,"Juhataja","Juhendaja","Lõuna","Puhkus","Telefonid","Koristaja"]
[null,":45",null,null,"Juhataja","Juhendaja","Lõuna","Puhkus","Lõuna","Koristaja"]
[null,"5:00",null,"Kassapidaja","Lõuna","Juhendaja","Lõuna","Puhkus","Lõuna","Koristaja"]
[null,":15",null,"Kassapidaja","Lõuna","Juhendaja","Klienditeenindaja","Puhkus","Telefonid","Koristaja"]
[null,":30",null,"Kassapidaja","Lõuna","Lõuna","Klienditeenindaja","Puhkus","Telefonid","Lõuna"]
[null,":45",null,"Kassapidaja","Lõuna","Lõuna","Klienditeenindaja","Puhkus","Telefonid","Lõuna"]
[null,"6:00",null,"Kassapidaja","Turvatöötaja","Lõuna","Klienditeenindaja","Puhkus","Telefonid","Lõuna"]
[null,":15",null,"Kassapidaja","Turvatöötaja","Lõuna","Klienditeenindaja","Puhkus","Telefonid","Lõuna"]
[null,":30",null,"Kassapidaja","Turvatöötaja","Juhendaja","Klienditeenindaja","Puhkus","Telefonid","Sulgemine"]
[null,":45",null,"Kassapidaja","Turvatöötaja","Juhendaja","Klienditeenindaja","Puhkus","Telefonid","Sulgemine"]
[null,"7:00",null,"Kassapidaja","Turvatöötaja","Juhendaja","Klienditeenindaja","Puhkus","Paus","Sulgemine"]
[null,":15",null,"Paus","Turvatöötaja","Juhendaja","Paus","Puhkus","Telefonid","Sulgemine"]
[null,":30",null,"Kassapidaja","Turvatöötaja","Juhendaja","Klienditeenindaja","Puhkus","Telefonid","Sulgemine"]
[null,":45",null,"Kassapidaja","Turvatöötaja","Juhendaja","Klienditeenindaja","Puhkus","Telefonid","Sulgemine"]
[null,"8:00",null,"Kassapidaja","Turvatöötaja","Juhendaja","Klienditeenindaja",null,"Telefonid","Sulgemine"]
[null,":15",null,"Kassapidaja","Turvatöötaja","Juhendaja","Klienditeenindaja",null,"Telefonid","Sulgemine"]
[null,":30",null,"Kassapidaja","Turvatöötaja","Juhendaja","Klienditeenindaja",null,"Telefonid","Sulgemine"]
[null,":45",null,"Kassapidaja","Turvatöötaja","Juhendaja","Klienditeenindaja",null,"Telefonid","Sulgemine"]
[null,"9:00",null,"Kassapidaja","Turvatöötaja","Juhendaja","Klienditeenindaja",null,"Telefonid","Sulgemine"]
[null,":15",null,"Kassapidaja","Turvatöötaja","Juhendaja","Klienditeenindaja",null,"Telefonid","Sulgemine"]
[null,":30",null,null,"Turvatöötaja","Juhendaja","Klienditeenindaja",null,"Telefonid","Sulgemine"]
[null,":45",null,null,"Turvatöötaja","Paus","Klienditeenindaja",null,"Telefonid","Paus"]
[null,"10:00",{"$nulls":3},"Juhendaja",null,null,"Telefonid","Sulgemine"]
[null,":15",{"$nulls":3},"Juhendaja",null,null,"Telefonid","Sulgemine"]
[null,":30",{"$nulls":3},"Juhendaja",{"$nulls":3},"Sulgemine"]
[null,":45",{"$nulls":3},"Juhendaja",{"$nulls":3},"Sulgemine"]
[null,"11:00",{"$nulls":3},"Juhendaja",{"$nulls":3},"Sulgemine"]
[null,":15",{"$nulls":3},"Juhendaja"]
[null,":30",{"$nulls":3},"Juhendaja"]
[null,":45"]
[null,"12:00"]
[]
[]
[]
[]
["Töötaja ajakava"]
[]
[null,"KOKKU:",null,{"$f":"SUM(124:124)","v":{"v":56,"d":"56.00"}}]
[null,"TUNNID:",null,{"$f":"TöötajaPäevTunnidKokku","v":8},8,8,8,8,8,8,{"v":0,"d":"0.00"},{"v":0,"d":"0.00"},{"v":0,"d":"0.00"},{"v":0,"d":"0.00"},{"v":0,"d":"0.00"},{"v":0,"d":"0.00"},{"v":0,"d":"0.00"},{"v":0,"d":"0.00"},{"v":0,"d":"0.00"},{"v":0,"d":"0.00"},{"v":0,"d":"0.00"}]
[null,"TÖÖTAJA:",null,"Kapp, T","Metsis, K","Savi, S","Mustikas, M","Kask, M","Lest, L","Paas, O"]
[]
[null,{"$f":"B67+1","v":"2012-07-18T09:00:00"}]
[null,{"$f":"B127","v":41108.375},{"$nulls":5},"Puhkus"]
[null,{"$f":"PerioodidKuva","v":":15"},null,"Administraator",{"$nulls":3},"Puhkus"]
[null,":30",null,"Administraator",{"$nulls":3},"Puhkus"]
[null,":45",null,"Administraator","Juhataja",null,"Klienditeenindaja","Puhkus"]
[null,"16:00",null,"Administraator","Juhataja",null,"Klienditeenindaja","Puhkus"]
[null,":15",null,"Administraator","Juhataja",null,"Klienditeenindaja","Puhkus"]
[null,":30",null,"Administraator","Juhataja",null,"Klienditeenindaja","Puhkus","Raamatupidaja"]
[null,":45",null,"Administraator","Juhataja",null,"Klienditeenindaja","Puhkus","Raamatupidaja","Koristaja"]
[null,"17:00",null,"Administraator","Juhataja",null,"Klienditeenindaja","Puhkus","Raamatupidaja","Koristaja"]
[null,":15",null,"Administraator","Juhataja","Juhendaja","Klienditeenindaja","Puhkus","Raamatupidaja","Koristaja"]
[null,":30",null,"Administraator","Paus","Juhendaja","Klienditeenindaja","Puhkus","Raamatupidaja","Koristaja"]
[null,":45",null,"Lõuna","Juhataja","Juhendaja","Klienditeenindaja","Puhkus","Raamatupidaja","Koristaja"]
[null,"18:00",null,"Lõuna","Juhataja","Juhendaja","Klienditeenindaja","Puhkus","Raamatupidaja","Koristaja"]
[null,":15",null,"Administraator","Juhataja","Juhendaja","Klienditeenindaja","Puhkus","Paus","Koristaja"]
[null,":30",null,"Administraator","Juhataja","Paus","Klienditeenindaja","Puhkus","Telefonid","Paus"]
[null,":45",null,"Administraator","Juhataja","Juhendaja","Klienditeenindaja","Puhkus","Telefonid","Koristaja"]
[null,"19:00",null,"Administraator","Juhataja","Juhendaja","Klienditeenindaja","Puhkus","Telefonid","Koristaja"]
[null,":15",null,"Administraator","Juhataja","Juhendaja","Lõuna","Puhkus","Telefonid","Koristaja"]
[null,":30",null,null,"Juhataja","Juhendaja","Lõuna","Puhkus","Telefonid","Koristaja"]
[null,":45",null,null,"Juhataja","Juhendaja","Lõuna","Puhkus","Lõuna","Koristaja"]
[null,"20:00",null,"Kassapidaja","Lõuna","Juhendaja","Lõuna","Puhkus","Lõuna","Koristaja"]
[null,":15",null,"Kassapidaja","Lõuna","Juhendaja","Klienditeenindaja","Puhkus","Telefonid","Koristaja"]
[null,":30",null,"Kassapidaja","Lõuna","Lõuna","Klienditeenindaja","Puhkus","Telefonid","Lõuna"]
[null,":45",null,"Kassapidaja","Lõuna","Lõuna","Klienditeenindaja","Puhkus","Telefonid","Lõuna"]
[null,"21:00",null,"Kassapidaja","Turvatöötaja","Lõuna","Klienditeenindaja","Puhkus","Telefonid","Lõuna"]
[null,":15",null,"Kassapidaja","Turvatöötaja","Lõuna","Klienditeenindaja","Puhkus","Telefonid","Lõuna"]
[null,":30",null,"Kassapidaja","Turvatöötaja","Juhendaja","Klienditeenindaja","Puhkus","Telefonid","Sulgemine"]
[null,":45",null,"Kassapidaja","Turvatöötaja","Juhendaja","Klienditeenindaja","Puhkus","Telefonid","Sulgemine"]
[null,"22:00",null,"Kassapidaja","Turvatöötaja","Juhendaja","Klienditeenindaja","Puhkus","Paus","Sulgemine"]
[null,":15",null,"Paus","Turvatöötaja","Juhendaja","Paus","Puhkus","Telefonid","Sulgemine"]
[null,":30",null,"Kassapidaja","Turvatöötaja","Juhendaja","Klienditeenindaja","Puhkus","Telefonid","Sulgemine"]
[null,":45",null,"Kassapidaja","Turvatöötaja","Juhendaja","Klienditeenindaja","Puhkus","Telefonid","Sulgemine"]
[null,"23:00",null,"Kassapidaja","Turvatöötaja","Juhendaja","Klienditeenindaja",null,"Telefonid","Sulgemine"]
[null,":15",null,"Kassapidaja","Turvatöötaja","Juhendaja","Klienditeenindaja",null,"Telefonid","Sulgemine"]
[null,":30",null,"Kassapidaja","Turvatöötaja","Juhendaja","Klienditeenindaja",null,"Telefonid","Sulgemine"]
[null,":45",null,"Kassapidaja","Turvatöötaja","Juhendaja","Klienditeenindaja",null,"Telefonid","Sulgemine"]
[null,"0:00",null,"Kassapidaja","Turvatöötaja","Juhendaja","Klienditeenindaja",null,"Telefonid","Sulgemine"]
[null,":15",null,"Kassapidaja","Turvatöötaja","Juhendaja","Klienditeenindaja",null,"Telefonid","Sulgemine"]
[null,":30",null,null,"Turvatöötaja","Juhendaja","Klienditeenindaja",null,"Telefonid","Sulgemine"]
[null,":45",null,null,"Turvatöötaja","Paus","Klienditeenindaja",null,"Telefonid","Paus"]
[null,"1:00",{"$nulls":3},"Juhendaja",null,null,"Telefonid","Sulgemine"]
[null,":15",{"$nulls":3},"Juhendaja",null,null,"Telefonid","Sulgemine"]
[null,":30",{"$nulls":3},"Juhendaja",{"$nulls":3},"Sulgemine"]
[null,":45",{"$nulls":3},"Juhendaja",{"$nulls":3},"Sulgemine"]
[null,"2:00",{"$nulls":3},"Juhendaja",{"$nulls":3},"Sulgemine"]
[null,":15",{"$nulls":3},"Juhendaja"]
[null,":30",{"$nulls":3},"Juhendaja"]
[null,":45"]
[null,"3:00"]
[]
[]
[]
[]
["Töötaja ajakava"]
[]
[null,"KOKKU:",null,{"$f":"SUM(184:184)","v":{"v":56,"d":"56.00"}}]
[null,"TUNNID:",null,{"$f":"TöötajaPäevTunnidKokku","v":8},8,8,8,8,8,8,{"v":0,"d":"0.00"},{"v":0,"d":"0.00"},{"v":0,"d":"0.00"},{"v":0,"d":"0.00"},{"v":0,"d":"0.00"},{"v":0,"d":"0.00"},{"v":0,"d":"0.00"},{"v":0,"d":"0.00"},{"v":0,"d":"0.00"},{"v":0,"d":"0.00"},{"v":0,"d":"0.00"}]
[null,"TÖÖTAJA:",null,"Kapp, T","Metsis, K","Savi, S","Mustikas, M","Kask, M","Lest, L","Paas, O"]
[]
[null,{"$f":"B127+1","v":"2012-07-19T09:00:00"}]
[null,{"$f":"B187","v":41109.375},{"$nulls":5},"Puhkus"]
[null,{"$f":"PerioodidKuva","v":":15"},null,"Administraator",{"$nulls":3},"Puhkus"]
[null,":30",null,"Administraator",{"$nulls":3},"Puhkus"]
[null,":45",null,"Administraator","Juhataja",null,"Klienditeenindaja","Puhkus"]
[null,"7:00",null,"Administraator","Juhataja",null,"Klienditeenindaja","Puhkus"]
[null,":15",null,"Administraator","Juhataja",null,"Klienditeenindaja","Puhkus"]
[null,":30",null,"Administraator","Juhataja",null,"Klienditeenindaja","Puhkus","Raamatupidaja"]
[null,":45",null,"Administraator","Juhataja",null,"Klienditeenindaja","Puhkus","Raamatupidaja","Koristaja"]
[null,"8:00",null,"Administraator","Juhataja",null,"Klienditeenindaja","Puhkus","Raamatupidaja","Koristaja"]
[null,":15",null,"Administraator","Juhataja","Juhendaja","Klienditeenindaja","Puhkus","Raamatupidaja","Koristaja"]
[null,":30",null,"Administraator","Paus","Juhendaja","Klienditeenindaja","Puhkus","Raamatupidaja","Koristaja"]
[null,":45",null,"Lõuna","Juhataja","Juhendaja","Klienditeenindaja","Puhkus","Raamatupidaja","Koristaja"]
[null,"9:00",null,"Lõuna","Juhataja","Juhendaja","Klienditeenindaja","Puhkus","Raamatupidaja","Koristaja"]
[null,":15",null,"Administraator","Juhataja","Juhendaja","Klienditeenindaja","Puhkus","Paus","Koristaja"]
[null,":30",null,"Administraator","Juhataja","Paus","Klienditeenindaja","Puhkus","Telefonid","Paus"]
[null,":45",null,"Administraator","Juhataja","Juhendaja","Klienditeenindaja","Puhkus","Telefonid","Koristaja"]
[null,"10:00",null,"Administraator","Juhataja","Juhendaja","Klienditeenindaja","Puhkus","Telefonid","Koristaja"]
[null,":15",null,"Administraator","Juhataja","Juhendaja","Lõuna","Puhkus","Telefonid","Koristaja"]
[null,":30",null,null,"Juhataja","Juhendaja","Lõuna","Puhkus","Telefonid","Koristaja"]
[null,":45",null,null,"Juhataja","Juhendaja","Lõuna","Puhkus","Lõuna","Koristaja"]
[null,"11:00",null,"Kassapidaja","Lõuna","Juhendaja","Lõuna","Puhkus","Lõuna","Koristaja"]
[null,":15",null,"Kassapidaja","Lõuna","Juhendaja","Klienditeenindaja","Puhkus","Telefonid","Koristaja"]
[null,":30",null,"Kassapidaja","Lõuna","Lõuna","Klienditeenindaja","Puhkus","Telefonid","Lõuna"]
[null,":45",null,"Kassapidaja","Lõuna","Lõuna","Klienditeenindaja","Puhkus","Telefonid","Lõuna"]
[null,"12:00",null,"Kassapidaja","Turvatöötaja","Lõuna","Klienditeenindaja","Puhkus","Telefonid","Lõuna"]
[null,":15",null,"Kassapidaja","Turvatöötaja","Lõuna","Klienditeenindaja","Puhkus","Telefonid","Lõuna"]
[null,":30",null,"Kassapidaja","Turvatöötaja","Juhendaja","Klienditeenindaja","Puhkus","Telefonid","Sulgemine"]
[null,":45",null,"Kassapidaja","Turvatöötaja","Juhendaja","Klienditeenindaja","Puhkus","Telefonid","Sulgemine"]
[null,"13:00",null,"Kassapidaja","Turvatöötaja","Juhendaja","Klienditeenindaja","Puhkus","Paus","Sulgemine"]
[null,":15",null,"Paus","Turvatöötaja","Juhendaja","Paus","Puhkus","Telefonid","Sulgemine"]
[null,":30",null,"Kassapidaja","Turvatöötaja","Juhendaja","Klienditeenindaja","Puhkus","Telefonid","Sulgemine"]
[null,":45",null,"Kassapidaja","Turvatöötaja","Juhendaja","Klienditeenindaja","Puhkus","Telefonid","Sulgemine"]
[null,"14:00",null,"Kassapidaja","Turvatöötaja","Juhendaja","Klienditeenindaja",null,"Telefonid","Sulgemine"]
[null,":15",null,"Kassapidaja","Turvatöötaja","Juhendaja","Klienditeenindaja",null,"Telefonid","Sulgemine"]
[null,":30",null,"Kassapidaja","Turvatöötaja","Juhendaja","Klienditeenindaja",null,"Telefonid","Sulgemine"]
[null,":45",null,"Kassapidaja","Turvatöötaja","Juhendaja","Klienditeenindaja",null,"Telefonid","Sulgemine"]
[null,"15:00",null,"Kassapidaja","Turvatöötaja","Juhendaja","Klienditeenindaja",null,"Telefonid","Sulgemine"]
[null,":15",null,"Kassapidaja","Turvatöötaja","Juhendaja","Klienditeenindaja",null,"Telefonid","Sulgemine"]
[null,":30",null,null,"Turvatöötaja","Juhendaja","Klienditeenindaja",null,"Telefonid","Sulgemine"]
[null,":45",null,null,"Turvatöötaja","Paus","Klienditeenindaja",null,"Telefonid","Paus"]
[null,"16:00",{"$nulls":3},"Juhendaja",null,null,"Telefonid","Sulgemine"]
[null,":15",{"$nulls":3},"Juhendaja",null,null,"Telefonid","Sulgemine"]
[null,":30",{"$nulls":3},"Juhendaja",{"$nulls":3},"Sulgemine"]
[null,":45",{"$nulls":3},"Juhendaja",{"$nulls":3},"Sulgemine"]
[null,"17:00",{"$nulls":3},"Juhendaja",{"$nulls":3},"Sulgemine"]
[null,":15",{"$nulls":3},"Juhendaja"]
[null,":30",{"$nulls":3},"Juhendaja"]
[null,":45"]
[null,"18:00"]
[]
[]
[]
[]
["Töötaja ajakava"]
[]
[null,"KOKKU:",null,{"$f":"SUM(244:244)","v":{"v":56,"d":"56.00"}}]
[null,"TUNNID:",null,{"$f":"TöötajaPäevTunnidKokku","v":8},8,8,8,8,8,8,{"v":0,"d":"0.00"},{"v":0,"d":"0.00"},{"v":0,"d":"0.00"},{"v":0,"d":"0.00"},{"v":0,"d":"0.00"},{"v":0,"d":"0.00"},{"v":0,"d":"0.00"},{"v":0,"d":"0.00"},{"v":0,"d":"0.00"},{"v":0,"d":"0.00"},{"v":0,"d":"0.00"}]
[null,"TÖÖTAJA:",null,"Kapp, T","Metsis, K","Savi, S","Mustikas, M","Kask, M","Lest, L","Paas, O"]
[]
[null,{"$f":"B187+1","v":"2012-07-20T09:00:00"}]
[null,{"$f":"B247","v":41110.375},{"$nulls":5},"Puhkus"]
[null,{"$f":"PerioodidKuva","v":":15"},null,"Administraator",{"$nulls":3},"Puhkus"]
[null,":30",null,"Administraator",{"$nulls":3},"Puhkus"]
[null,":45",null,"Administraator","Juhataja",null,"Klienditeenindaja","Puhkus"]
[null,"22:00",null,"Administraator","Juhataja",null,"Klienditeenindaja","Puhkus"]
[null,":15",null,"Administraator","Juhataja",null,"Klienditeenindaja","Puhkus"]
[null,":30",null,"Administraator","Juhataja",null,"Klienditeenindaja","Puhkus","Raamatupidaja"]
[null,":45",null,"Administraator","Juhataja",null,"Klienditeenindaja","Puhkus","Raamatupidaja","Koristaja"]
[null,"23:00",null,"Administraator","Juhataja",null,"Klienditeenindaja","Puhkus","Raamatupidaja","Koristaja"]
[null,":15",null,"Administraator","Juhataja","Juhendaja","Klienditeenindaja","Puhkus","Raamatupidaja","Koristaja"]
[null,":30",null,"Administraator","Paus","Juhendaja","Klienditeenindaja","Puhkus","Raamatupidaja","Koristaja"]
[null,":45",null,"Lõuna","Juhataja","Juhendaja","Klienditeenindaja","Puhkus","Raamatupidaja","Koristaja"]
[null,"0:00",null,"Lõuna","Juhataja","Juhendaja","Klienditeenindaja","Puhkus","Raamatupidaja","Koristaja"]
[null,":15",null,"Administraator","Juhataja","Juhendaja","Klienditeenindaja","Puhkus","Paus","Koristaja"]
[null,":30",null,"Administraator","Juhataja","Paus","Klienditeenindaja","Puhkus","Telefonid","Paus"]
[null,":45",null,"Administraator","Juhataja","Juhendaja","Klienditeenindaja","Puhkus","Telefonid","Koristaja"]
[null,"1:00",null,"Administraator","Juhataja","Juhendaja","Klienditeenindaja","Puhkus","Telefonid","Koristaja"]
[null,":15",null,"Administraator","Juhataja","Juhendaja","Lõuna","Puhkus","Telefonid","Koristaja"]
[null,":30",null,null,"Juhataja","Juhendaja","Lõuna","Puhkus","Telefonid","Koristaja"]
[null,":45",null,null,"Juhataja","Juhendaja","Lõuna","Puhkus","Lõuna","Koristaja"]
[null,"2:00",null,"Kassapidaja","Lõuna","Juhendaja","Lõuna","Puhkus","Lõuna","Koristaja"]
[null,":15",null,"Kassapidaja","Lõuna","Juhendaja","Klienditeenindaja","Puhkus","Telefonid","Koristaja"]
[null,":30",null,"Kassapidaja","Lõuna","Lõuna","Klienditeenindaja","Puhkus","Telefonid","Lõuna"]
[null,":45",null,"Kassapidaja","Lõuna","Lõuna","Klienditeenindaja","Puhkus","Telefonid","Lõuna"]
[null,"3:00",null,"Kassapidaja","Turvatöötaja","Lõuna","Klienditeenindaja","Puhkus","Telefonid","Lõuna"]
[null,":15",null,"Kassapidaja","Turvatöötaja","Lõuna","Klienditeenindaja","Puhkus","Telefonid","Lõuna"]
[null,":30",null,"Kassapidaja","Turvatöötaja","Juhendaja","Klienditeenindaja","Puhkus","Telefonid","Sulgemine"]
[null,":45",null,"Kassapidaja","Turvatöötaja","Juhendaja","Klienditeenindaja","Puhkus","Telefonid","Sulgemine"]
[null,"4:00",null,"Kassapidaja","Turvatöötaja","Juhendaja","Klienditeenindaja","Puhkus","Paus","Sulgemine"]
[null,":15",null,"Paus","Turvatöötaja","Juhendaja","Paus","Puhkus","Telefonid","Sulgemine"]
[null,":30",null,"Kassapidaja","Turvatöötaja","Juhendaja","Klienditeenindaja","Puhkus","Telefonid","Sulgemine"]
[null,":45",null,"Kassapidaja","Turvatöötaja","Juhendaja","Klienditeenindaja","Puhkus","Telefonid","Sulgemine"]
[null,"5:00",null,"Kassapidaja","Turvatöötaja","Juhendaja","Klienditeenindaja",null,"Telefonid","Sulgemine"]
[null,":15",null,"Kassapidaja","Turvatöötaja","Juhendaja","Klienditeenindaja",null,"Telefonid","Sulgemine"]
[null,":30",null,"Kassapidaja","Turvatöötaja","Juhendaja","Klienditeenindaja",null,"Telefonid","Sulgemine"]
[null,":45",null,"Kassapidaja","Turvatöötaja","Juhendaja","Klienditeenindaja",null,"Telefonid","Sulgemine"]
[null,"6:00",null,"Kassapidaja","Turvatöötaja","Juhendaja","Klienditeenindaja",null,"Telefonid","Sulgemine"]
[null,":15",null,"Kassapidaja","Turvatöötaja","Juhendaja","Klienditeenindaja",null,"Telefonid","Sulgemine"]
[null,":30",null,null,"Turvatöötaja","Juhendaja","Klienditeenindaja",null,"Telefonid","Sulgemine"]
[null,":45",null,null,"Turvatöötaja","Paus","Klienditeenindaja",null,"Telefonid","Paus"]
[null,"7:00",{"$nulls":3},"Juhendaja",null,null,"Telefonid","Sulgemine"]
[null,":15",{"$nulls":3},"Juhendaja",null,null,"Telefonid","Sulgemine"]
[null,":30",{"$nulls":3},"Juhendaja",{"$nulls":3},"Sulgemine"]
[null,":45",{"$nulls":3},"Juhendaja",{"$nulls":3},"Sulgemine"]
[null,"8:00",{"$nulls":3},"Juhendaja",{"$nulls":3},"Sulgemine"]
[null,":15",{"$nulls":3},"Juhendaja"]
[null,":30",{"$nulls":3},"Juhendaja"]
[null,":45"]
[null,"9:00"]

{"sheet":"Häälestamine","index":1,"n_rows":26,"n_cols":7,"rows_kept":26}
[null,"Häälestus"]
[]
[]
[null,"TUNNI JAOTUSTE\nSISESTUS",4]
[]
[]
[]
[]
[]
[null,"Töötajad",null,"Ametikoht / vaba aeg","Värv","Makstud","Terve päev"]
[null,"Kapp, T",null,"Lõuna",1,false,false]
[null,"Kask, M",null,"Paus",1,false,false]
[null,"Lest, L",null,"Vaba",1,false,true]
[null,"Lill, L",null,"Haige",1,false,true]
[null,"Metsis, K",null,"Vaba päev",1,true,true]
[null,"Mustikas, M",null,"Puhkus",1,true,true]
[null,"Paas, O",null,"Administraator",2,true,false]
[null,"Savi, S",null,"Kassapidaja",3,true,false]
[{"$nulls":3},"Juhataja",4,true,false]
[{"$nulls":3},"Juhendaja",5,true,false]
[{"$nulls":3},"Klienditeenindaja",6,true,false]
[{"$nulls":3},"Telefonid",7,true,false]
[{"$nulls":3},"Turvatöötaja",8,true,false]
[{"$nulls":3},"Koristaja",9,true,false]
[{"$nulls":3},"Raamatupidaja",10,true,false]
[{"$nulls":3},"Sulgemine",11,true,false]